bitfinex/quotes_ETHUSD_20251220
["timestamp","ask_amount","ask_price","bid_price","bid_amount"]
[1766273006431,3.79806054,2979.7,2979.1,1.641]
[1766273007333,0.442,2979.7,2979.1,1.641]
[1766273008846,0.442,2979.7,2979.0,0.002]
[1766273009026,0.442,2979.7,2979.2,0.3573]
[1766273009347,0.442,2979.7,2979.2,1.5106]
[1766273030569,3.79804884,2979.7,2979.1,0.002]
[1766273030863,7.15409768,2979.7,2979.1,0.002]
[1766273031063,7.15409768,2979.7,2979.0,0.002]
[1766273031436,0.71550977,2979.6,2979.0,0.002]
[1766273032872,4.07167138,2979.6,2979.1,0.002]
[1766273033555,0.442,2979.7,2979.3,1.2769]
[1766273033758,0.442,2979.7,2979.4,0.3729]
[1766273034189,0.442,2979.7,2979.3,1.2769]
[1766273035691,0.442,2979.7,2979.3,1.6498]
[1766273038498,0.442,2979.7,2979.1,0.002]
[1766273038687,0.442,2979.7,2979.3,0.3729]
[1766273038880,0.442,2979.7,2979.3,1.6498]
[1766273040485,3.79805585,2979.7,2979.3,1.6498]
[1766273040685,3.79805585,2979.7,2979.1,1.6518]
[1766273041509,3.79805585,2979.7,2979.2,1.6498]
[1766273044811,0.442,2979.7,2979.2,1.6498]
[1766273045178,3.79807299,2979.7,2979.2,1.6498]
[1766273053338,3.79807299,2979.7,2979.1,0.002]
[1766273053833,3.79807299,2979.7,2979.1,1.6317]
[1766273060861,4.51356479,2979.7,2979.1,1.6317]
[1766273062757,7.86963778,2979.7,2979.0,0.002]
[1766273062959,7.86963778,2979.7,2978.8,0.002]
[1766273062960,16.29293588,2979.7,2978.8,0.002]
[1766273063159,19.64900887,2979.7,2978.5,1.6297]
[1766273063348,2.97367379,2979.6,2978.5,1.6297]
[1766273063756,1.96500089,2979.6,2978.5,1.6297]
[1766273063956,1.0086729,2979.5,2978.5,1.6297]
[1766273066964,3.35638047,2979.4,2978.5,1.6317]
[1766273067147,0.441,2979.3,2978.5,1.6317]
[1766273067349,0.441,2979.3,2978.5,1.83887]
[1766273070073,3.79759753,2979.3,2978.5,1.83887]
[1766273080159,3.79859753,2979.3,2978.5,1.83887]
[1766273081787,3.79859753,2979.3,2978.5,0.55617]
[1766273081992,3.79859753,2979.3,2978.6,1.1725]
[1766273082293,3.79859753,2979.3,2978.6,1.5393]
[1766273088201,12.22547358,2979.3,2978.6,1.5393]
[1766273090282,3.79859753,2979.3,2978.6,1.5393]
[1766273090682,0.442,2979.3,2978.8,1.1725]
[1766273091010,0.442,2979.3,2978.9,1.5393]
[1766273095712,3.79850179,2979.3,2978.9,1.5393]
[1766273095897,1.2583444,2979.3,2978.9,1.5393]
[1766273096207,1.2583444,2979.3,2978.9,1.1725]
[1766273098313,1.2583444,2979.3,2978.8,0.3668]
[1766273098815,1.2583444,2979.3,2978.8,1.5393]
[1766273104616,4.61484013,2979.3,2978.8,1.5393]
[1766273107232,4.61484013,2979.3,2978.8,1.1725]
[1766273107729,4.61484013,2979.3,2978.6,0.3538]
[1766273107730,0.46148401,2979.2,2978.6,1.1344]
[1766273107908,4.61484013,2979.3,2978.6,1.1344]
[1766273108845,7.97133586,2979.3,2978.5,0.002]
[1766273109030,7.97133586,2979.3,2978.5,0.442]
[1766273109639,7.97133586,2979.3,2978.5,1.9302]
[1766273113756,7.97133586,2979.3,2978.5,1.4902]
[1766273113925,10.16756555,2979.2,2978.3,0.44]
[1766273114122,10.16756555,2979.2,2978.3,1.9282]
[1766273114324,1.7406895,2979.2,2978.4,1.4882]
[1766273117465,3.35671847,2979.1,2978.4,1.4882]
[1766273117662,4.61795577,2979.1,2978.4,1.4902]
[1766273118164,4.61795577,2979.1,2978.4,0.002]
[1766273120555,7.97467424,2979.1,2978.4,0.002]
[1766273121464,16.40244606,2979.1,2978.4,0.002]
[1766273123657,17.41121393,2979.1,2978.4,0.002]
[1766273123835,1.91519034,2979.0,2978.4,0.002]
[1766273125135,3.35694383,2978.9,2978.4,0.002]
[1766273126246,6.28081712,2979.0,2978.4,1.5376]
[1766273126434,4.36562678,2979.0,2978.4,1.5376]
[1766273128243,1.00877465,2979.0,2978.4,1.5376]
[1766273128573,4.36561333,2979.0,2978.4,1.5376]
[1766273134254,0.001,2979.1,2978.7,0.3718]
[1766273135148,0.001,2979.1,2978.7,1.4683]
[1766273143786,0.001,2979.1,2978.6,0.3422]
[1766273143992,0.001,2979.1,2978.9,1.0965]
[1766273144191,0.001,2979.1,2978.9,1.4387]
[1766273144783,0.001,2979.1,2978.5,1.4387]
[1766273145090,0.001,2979.1,2978.7,1.0965]
[1766273145292,0.001,2979.1,2978.7,1.4387]
[1766273158073,0.001,2979.1,2978.5,0.002]
[1766273158381,0.001,2979.1,2978.8,1.0965]
[1766273158785,0.001,2979.1,2978.8,1.4387]
[1766273163409,0.001,2979.1,2978.5,0.002]
[1766273163598,0.001,2979.1,2978.6,0.33614582]
[1766273163799,0.001,2979.1,2978.8,1.4387]
[1766273164509,0.001,2979.1,2978.9,1.0965]
[1766273164687,0.001,2979.1,2978.9,1.4532]
[1766273170721,0.001,2979.1,2978.7,1.4454]
[1766273171413,0.001,2979.1,2978.5,0.002]
[1766273171816,0.001,2979.1,2978.5,1.4474]
[1766273174004,0.3809507,2979.1,2978.5,1.4474]
[1766273175213,0.3809507,2979.1,2978.5,1.0907]
[1766273175397,0.3809507,2979.1,2978.5,0.002]
[1766273175814,3.73769311,2979.1,2978.5,0.002]
[1766273176310,0.3809507,2979.1,2978.5,0.002]
[1766273176503,8.42562973,2979.0,2978.4,0.002]
[1766273176707,1.55200682,2978.9,2978.4,0.002]
[1766273177104,7.09443849,2979.1,2978.4,0.002]
[1766273182098,3.73766917,2979.1,2978.4,0.002]
[1766273192342,7.09443849,2979.1,2978.4,0.002]
[1766273197543,15.5229085,2979.1,2978.4,0.002]
[1766273209988,12.16613918,2979.1,2978.4,0.002]
[1766273210279,1.55227727,2979.0,2978.4,0.002]
[1766273214586,3.35694383,2978.9,2978.4,0.002]
[1766273218601,4.90915723,2979.0,2978.4,0.002]
[1766273224075,1.55227727,2979.0,2978.4,0.002]
[1766273225694,4.74651596,2979.1,2978.4,0.002]
[1766273225997,0.3809507,2979.1,2978.6,0.3735]
[1766273226194,0.3809507,2979.1,2978.6,1.3963]
[1766273229097,3.73768428,2979.1,2978.6,1.3963]
[1766273229465,3.73768428,2979.1,2978.4,1.0248]
[1766273229670,3.73768428,2979.1,2978.4,1.38915291]
[1766273231201,3.8314881,2979.0,2978.1,0.3735]
[1766273231772,3.8314881,2979.0,2978.2,1.0228]
[1766273232088,3.8314881,2979.0,2978.2,1.3963]
[1766273232403,3.8314881,2979.0,2978.4,0.002]
[1766273234371,4.2724881,2979.0,2978.4,0.002]
[1766273234572,1.64366407,2978.9,2978.4,0.002]
[1766273236067,4.2724881,2979.0,2978.4,0.002]
[1766273238902,4.2734881,2979.0,2978.4,0.002]
[1766273240008,0.91664454,2979.0,2978.5,1.3963]
[1766273260423,0.47564454,2979.0,2978.5,1.3963]
[1766273261024,0.001,2979.0,2978.5,1.3963]
[1766273261238,0.001,2979.0,2978.7,1.3728]
[1766273265131,0.001,2979.0,2978.7,2.38154073]
[1766273265428,0.001,2979.0,2978.7,1.3728]
[1766273265624,0.001,2979.0,2978.8,0.442]
[1766273286044,0.001,2979.0,2978.8,1.7253]
[1766273289553,0.001,2979.1,2978.8,0.442]
[1766273289845,0.001,2979.1,2978.9,1.2833]
[1766273290051,0.001,2979.3,2979.0,1.2833]
[1766273290224,0.001,2979.3,2979.1,0.9361]
[1766273290426,0.884,2979.7,2979.0,0.9361]
[1766273290630,0.442,2979.7,2979.3,0.9361]
[1766273290857,0.442,2979.7,2979.3,1.2833]
[1766273292055,0.442,2979.7,2979.3,2.29187456]
[1766273296770,0.442,2979.7,2979.3,1.94467456]
[1766273297343,0.442,2979.7,2979.3,1.00857456]
[1766273298756,3.79806073,2979.7,2979.3,1.00857456]
[1766273298963,4.82495593,2979.7,2978.9,1.7233]
[1766273299258,4.82495593,2979.7,2979.1,1.00856439]
[1766273302641,3.79806073,2979.7,2979.1,1.00856439]
[1766273303363,3.79806073,2979.7,2979.1,2.39386439]
[1766273305763,3.79806073,2979.7,2979.1,1.3853]
[1766273306263,3.79806073,2979.7,2978.9,1.00856439]
[1766273306435,3.79806073,2979.7,2978.9,2.39386439]
[1766273306632,3.79806073,2979.7,2978.9,1.00856439]
[1766273306833,3.79806073,2979.7,2979.0,1.3853]
[1766273309036,3.79806073,2979.7,2978.9,1.00856439]
[1766273309560,3.79806073,2979.7,2979.0,1.0114]
[1766273309744,3.79806073,2979.7,2979.1,1.3853]
[1766273313969,0.442,2979.7,2979.0,1.0114]
[1766273314263,0.442,2979.7,2979.4,1.3853]
[1766273315764,0.442,2979.7,2979.1,1.2639]
[1766273315960,0.442,2979.7,2979.2,0.3379]
[1766273316166,0.442,2979.7,2979.5,1.2639]
[1766273317250,0.442,2979.7,2979.1,1.00854743]
[1766273317453,0.442,2979.7,2979.3,0.3379]
[1766273317784,0.442,2979.7,2979.3,1.2639]
[1766273323094,0.442,2979.7,2979.1,1.00854743]
[1766273323291,0.442,2979.7,2979.3,0.3379]
[1766273323471,0.43940536,2979.7,2979.4,1.2639]
[1766273325704,0.43940536,2979.7,2979.1,1.00854743]
[1766273326000,0.43940536,2979.7,2979.4,0.926]
[1766273326211,0.43940536,2979.7,2979.5,1.2639]
[1766273328867,0.001,2979.8,2979.5,1.2639]
[1766273329063,0.001,2979.7,2979.5,1.2639]
[1766273329268,1.44954743,2980.0,2979.3,0.002]
[1766273329483,1.44954743,2980.0,2979.5,0.3379]
[1766273329695,1.44954743,2980.0,2979.6,1.2639]
[1766273330299,0.441,2980.0,2979.6,1.2639]
[1766273335716,0.442,2980.0,2979.6,1.2639]
[1766273342391,0.92271151,2980.0,2979.6,1.2639]
[1766273345400,0.92271151,2980.0,2979.5,0.002]
[1766273347730,0.92271151,2980.0,2979.5,1.267]
[1766273364338,0.442,2980.0,2979.5,1.267]
[1766273369246,0.442,2980.0,2979.7,1.3355]
[1766273370840,1.00940166,2980.3,2979.5,1.01040166]
[1766273371044,3.35638217,2980.3,2979.7,1.3355]
[1766273371844,3.35638217,2980.3,2979.7,2.34383726]
[1766273372739,8.42135128,2980.2,2979.5,1.3375]
[1766273373044,8.42135128,2980.2,2979.5,2.3458881]
[1766273378550,11.7768451,2980.2,2979.5,2.3458881]
[1766273379350,11.7768451,2980.2,2979.5,2.7858881]
[1766273379548,8.42135128,2980.2,2979.5,2.7858881]
[1766273379746,8.42135128,2980.2,2979.5,3.06467691]
[1766273381453,3.72335052,2980.3,2979.5,3.06467691]
[1766273382052,0.001,2980.2,2979.5,3.06467691]
[1766273383154,0.001,2980.2,2979.5,1.72917691]
[1766273383453,0.001,2980.2,2979.6,1.3096]
[1766273388659,0.001,2980.2,2979.5,1.28917691]
[1766273389257,0.001,2980.2,2979.5,2.59877691]
[1766273392761,0.001,2980.2,2979.6,0.30387769]
[1766273397468,8.4219762,2979.9,2979.3,0.002]
[1766273397670,8.4219762,2979.9,2979.0,0.002]
[1766273397671,8.4219762,2979.6,2979.0,0.002]
[1766273397838,8.4219762,2979.6,2978.7,1.3096]
[1766273398038,8.4219762,2979.6,2978.7,1.48456]
[1766273398255,1.0086356,2979.5,2978.7,1.48456]
[1766273398662,4.3649477,2979.5,2978.7,1.48456]
[1766273398974,3.3563121,2979.5,2978.7,1.48456]
[1766273399276,1.0086356,2979.4,2978.7,1.48456]
[1766273399454,1.0086356,2979.4,2978.7,0.17496]
[1766273399777,1.0086356,2979.4,2978.8,1.3096]
[1766273400976,1.0086356,2979.4,2978.6,1.3096]
[1766273400977,8.4219762,2979.3,2978.6,1.3096]
[1766273401282,8.4219762,2979.3,2978.5,0.44]
[1766273401674,1.00872717,2979.2,2978.5,1.7496]
[1766273403277,1.00872717,2979.2,2978.5,0.44]
[1766273403476,1.00872717,2979.2,2978.7,0.3508]
[1766273403659,1.00872717,2979.2,2978.5,0.44]
[1766273403660,1.00872717,2979.2,2978.8,1.3096]
[1766273403979,1.00872717,2979.2,2978.8,1.1459]
[1766273404577,1.00860169,2979.6,2978.6,0.3508]
[1766273404779,1.00860169,2979.6,2978.8,0.3454]
[1766273405176,3.35604102,2979.8,2978.8,1.00860169]
[1766273405480,4.36464271,2979.8,2978.9,0.3454]
[1766273406059,4.36464271,2979.8,2979.0,0.9433]
[1766273406260,4.36464271,2979.8,2979.2,1.2887]
[1766273407275,4.36464271,2979.8,2978.9,0.44]
[1766273407482,4.36464271,2979.8,2979.2,0.9433]
[1766273407686,4.36464271,2979.8,2979.2,1.2887]
[1766273407884,3.35604102,2979.8,2979.2,1.2887]
[1766273408654,1.00860169,2979.7,2979.2,1.2887]
[1766273409557,4.36464464,2979.7,2979.2,1.2887]
[1766273411290,1.00860169,2979.7,2979.2,1.2887]
[1766273411665,3.35589484,2979.9,2979.4,0.9433]
[1766273411883,4.67405752,2979.9,2979.1,1.2907]
[1766273412198,5.68259478,2979.9,2979.1,2.29923726]
[1766273412701,9.03848962,2979.9,2979.1,2.29923726]
[1766273414900,9.03848962,2979.9,2979.1,2.73923726]
[1766273415774,5.68259478,2979.9,2979.1,2.73923726]
[1766273415975,5.68259478,2979.9,2979.3,0.9433]
[1766273415976,1.00853726,2979.9,2979.3,0.9433]
[1766273416170,1.00853726,2979.9,2979.2,0.27392373]
[1766273416376,3.79747995,2980.2,2979.2,0.27392373]
[1766273416377,3.7974982,2980.2,2979.2,0.27392373]
[1766273416580,1.45043556,2980.2,2979.5,0.3454]
[1766273416819,1.00943556,2980.2,2980.0,0.9433]
[1766273416988,0.001,2980.2,2980.0,0.9433]
[1766273417677,3.69233639,2980.2,2979.9,0.3454]
[1766273417873,0.33683757,2980.2,2979.9,0.3454]
[1766273419191,3.69236658,2980.2,2979.7,0.9433]
[1766273419582,3.69236658,2980.2,2979.6,0.3454]
[1766273419905,3.69236658,2980.2,2979.6,0.9433]
[1766273420078,0.001,2980.1,2979.7,1.2887]
[1766273426017,0.001,2980.1,2979.2,1.304]
[1766273426018,8.42433602,2979.9,2979.2,1.304]
[1766273426225,8.42433602,2979.9,2979.1,0.002]
[1766273426777,1.00854404,2979.8,2979.1,0.002]
[1766273427383,1.00854404,2979.8,2979.1,1.306]
[1766273427589,0.94328801,2979.7,2979.1,1.306]
[1766273427993,8.42433602,2979.9,2979.3,0.9653]
[1766273428293,1.00854404,2979.8,2979.2,1.304]
[1766273428630,1.00854404,2979.8,2979.3,1.304]
[1766273430211,1.00854404,2979.8,2979.3,0.3387]
[1766273430399,0.001,2980.1,2979.2,0.44]
[1766273430720,0.3387,2980.0,2979.5,0.9653]
[1766273431022,3.35665583,2980.1,2979.6,1.304]
[1766273431231,4.99335894,2980.1,2979.6,1.304]
[1766273431429,4.99335894,2980.1,2979.2,1.744]
[1766273431796,4.99335894,2980.1,2979.3,1.304]
[1766273431993,8.34901477,2980.1,2979.3,1.304]
[1766273432226,8.34901477,2980.1,2979.2,0.44]
[1766273432433,8.34901477,2980.1,2979.4,0.3387]
[1766273432729,1.67743508,2980.0,2979.4,1.304]
[1766273434028,1.67743508,2980.0,2979.2,0.44]
[1766273434231,4.32195583,2980.1,2979.2,0.44]
[1766273434404,4.32195583,2980.1,2979.4,1.304]
[1766273435294,4.32195583,2980.1,2979.2,0.44]
[1766273435522,4.32195583,2980.1,2979.3,0.9435]
[1766273435722,4.32195583,2980.1,2979.4,0.3575]
[1766273436031,5.93233502,2980.1,2979.5,1.301]
[1766273440237,9.28799085,2980.1,2979.5,1.301]
[1766273441037,9.28799085,2980.1,2979.4,0.002]
[1766273441630,8.42338707,2980.0,2979.4,0.002]
[1766273442638,9.28799085,2980.1,2979.4,0.002]
[1766273442838,12.7453429,2980.1,2979.5,1.301]
[1766273443139,13.67434198,2980.1,2979.5,1.301]
[1766273445822,13.67391738,2980.1,2979.5,1.301]
[1766273454646,12.70861738,2980.1,2979.5,1.301]
[1766273456818,16.06427321,2980.1,2979.4,0.002]
[1766273457014,1.70737257,2980.0,2979.4,0.002]
[1766273458743,3.3558173,2979.9,2979.4,0.002]
[1766273461949,8.42296247,2979.6,2979.1,0.442]
[1766273462433,8.42296247,2979.6,2979.1,1.743]
[1766273462627,8.42296247,2979.8,2979.1,1.743]
[1766273462831,1.65841106,2979.7,2979.1,1.743]
[1766273463547,8.16114813,2979.9,2979.3,0.3575]
[1766273463548,13.2282933,2979.9,2979.3,0.3575]
[1766273463749,13.2282933,2979.9,2979.3,1.301]
[1766273464916,13.2282933,2979.9,2979.3,0.3566]
[1766273465153,13.2282933,2979.9,2979.4,1.2975]
[1766273465832,0.441,2979.9,2979.2,1.2975]
[1766273466032,0.441,2979.9,2979.4,0.9409]
[1766273466263,0.441,2979.9,2979.6,1.2975]
[1766273468168,0.001,2980.1,2979.7,0.3566]
[1766273468468,0.001,2980.1,2979.9,0.3566]
[1766273468673,0.001,2980.1,2979.8,0.9409]
[1766273469568,0.001,2980.1,2979.8,1.2975]
[1766273471265,8.42396247,2980.1,2979.8,1.2975]
[1766273471441,8.42396247,2980.1,2979.6,1.2975]
[1766273474168,8.42396247,2980.1,2979.5,0.002]
[1766273474169,3.35659641,2980.1,2979.5,0.002]
[1766273474372,8.42296247,2979.9,2979.5,0.002]
[1766273476378,8.42396247,2980.1,2979.5,0.002]
[1766273476569,0.001,2980.1,2979.5,0.002]
[1766273476756,0.001,2980.1,2979.6,0.9409]
[1766273476960,0.001,2980.1,2979.6,1.2975]
[1766273477272,3.35659445,2980.1,2979.6,1.2975]
[1766273477467,3.35659445,2980.1,2979.5,0.002]
[1766273477673,3.35659445,2980.1,2979.5,0.442]
[1766273478775,3.35659445,2980.1,2979.5,1.7395]
[1766273478975,0.001,2980.1,2979.5,1.7395]
[1766273480379,0.001,2980.1,2979.6,1.2975]
[1766273480674,0.001,2980.1,2979.7,0.3566]
[1766273480880,0.001,2980.1,2979.9,0.3566]
[1766273481047,0.001,2980.1,2979.9,1.2975]
[1766273483674,0.001,2980.2,2979.5,0.442]
[1766273483918,0.001,2980.2,2979.7,0.3704]
[1766273484056,0.001,2980.3,2979.5,0.442]
[1766273484057,0.001,2980.3,2980.1,1.3495]
[1766273484251,0.001,2980.4,2980.0,0.9791]
[1766273484578,0.001,2980.4,2980.2,1.3495]
[1766273485480,0.001,2980.5,2980.2,1.3495]
[1766273487980,0.001,2980.5,2980.0,1.3495]
[1766273489757,9.01678921,2980.5,2979.6,1.3495]
[1766273489982,9.01678921,2980.5,2979.7,0.44]
[1766273490156,9.01678921,2980.5,2979.7,1.7895]
[1766273491090,8.41958919,2980.3,2979.5,0.002]
[1766273491298,8.41958919,2980.3,2979.6,1.7895]
[1766273492992,3.35547949,2980.2,2979.6,1.7895]
[1766273493364,3.35547949,2980.2,2979.7,1.3495]
[1766273493566,3.35547949,2980.2,2979.8,0.3704]
[1766273493765,3.35547949,2980.2,2979.8,1.3495]
[1766273494300,11.77506868,2980.2,2979.6,1.7895]
[1766273494701,3.35547949,2980.2,2979.7,1.2775]
[1766273496697,4.36477515,2980.3,2979.7,1.2775]
[1766273496892,12.78436434,2980.3,2979.7,1.2775]
[1766273503641,4.36477515,2980.3,2979.7,1.2775]
[1766273518267,4.34890497,2980.3,2979.7,1.2775]
[1766273521075,7.70431574,2980.3,2979.7,1.2775]
[1766273521254,8.42181858,2980.2,2979.6,0.442]
[1766273521460,8.42332375,2980.2,2979.6,0.442]
[1766273521867,8.42332375,2980.2,2979.6,0.002]
[1766273522237,8.42332375,2980.2,2979.7,1.2775]
[1766273522967,3.35559209,2980.1,2979.6,0.002]
[1766273523146,8.42332375,2979.9,2979.1,1.2795]
[1766273523347,8.42332375,2979.9,2979.1,0.002]
[1766273523568,8.42332375,2979.6,2979.1,0.002]
[1766273523774,8.42332375,2979.6,2979.0,0.002]
[1766273524373,8.86332375,2979.6,2978.8,0.442]
[1766273524573,9.70565613,2979.6,2978.8,0.442]
[1766273525243,13.06190918,2979.6,2978.8,0.442]
[1766273525445,13.06190918,2979.6,2978.8,1.7041]
[1766273526876,4.63858543,2979.6,2978.8,1.7041]
[1766273527042,7.99483848,2979.6,2978.8,1.7041]
[1766273527841,8.42332375,2979.4,2978.8,0.002]
[1766273530055,11.77970484,2979.4,2978.8,0.002]
[1766273531171,15.13608593,2979.4,2978.8,0.002]
[1766273531473,11.77970484,2979.4,2978.8,0.002]
[1766273531644,13.07790073,2979.4,2978.8,0.002]
[1766273533679,16.43428182,2979.4,2978.8,0.002]
[1766273533880,17.44293437,2979.4,2978.8,0.002]
[1766273534562,14.08655328,2979.4,2978.8,0.002]
[1766273539579,17.44293437,2979.4,2978.8,0.002]
[1766273540557,14.08655328,2979.4,2978.8,0.002]
[1766273541689,5.66322953,2979.4,2978.8,1.2641]
[1766273549097,4.65457698,2979.4,2978.8,1.2641]
[1766273549298,4.36518744,2979.3,2978.8,1.2641]
[1766273550297,7.72172233,2979.3,2978.8,0.002]
[1766273550476,9.54609491,2979.3,2978.8,0.002]
[1766273553616,8.42332375,2979.2,2978.5,0.002]
[1766273553906,9.43205092,2979.2,2978.5,0.442]
[1766273554599,8.42332375,2979.2,2978.5,0.442]
[1766273554800,2.28811348,2979.1,2978.5,0.442]
[1766273556074,1.00872717,2979.1,2978.6,1.3371]
[1766273556273,3.35664457,2979.2,2978.6,1.3371]
[1766273556511,1.00872717,2979.1,2978.6,1.3371]
[1766273559917,4.36545083,2979.1,2978.5,1.7791]
[1766273560091,5.13764774,2979.1,2978.5,1.7791]
[1766273560288,4.12892057,2979.1,2978.5,1.7791]
[1766273560486,1.00872717,2979.0,2978.5,1.7791]
[1766273561182,1.00872717,2979.0,2978.5,0.442]
[1766273562105,4.36563376,2979.0,2978.5,0.442]
[1766273562315,6.05781631,2979.0,2978.5,0.442]
[1766273562484,5.04908914,2979.0,2978.5,0.442]
[1766273562810,1.00875769,2978.9,2978.5,0.442]
[1766273565614,4.36572435,2978.9,2978.5,0.442]
[1766273567110,3.35696666,2978.9,2978.5,0.442]
[1766273567509,4.36572435,2978.9,2978.5,0.442]
[1766273570318,1.00875769,2978.9,2978.5,0.442]
[1766273570619,0.001,2979.1,2978.6,0.9727]
[1766273570912,0.001,2979.1,2978.5,0.442]
[1766273570913,3.79972093,2979.1,2978.7,1.3371]
[1766273571304,0.443,2979.1,2978.7,1.3371]
[1766273574316,0.001,2978.9,2978.7,1.3371]
[1766273577417,0.001,2978.9,2978.5,1.7791]
[1766273579798,0.001,2978.9,2978.5,1.3391]
[1766273584203,0.001,2978.9,2978.6,1.3371]
[1766273592333,0.001,2978.9,2978.5,0.002]
[1766273593523,0.001,2978.9,2978.6,1.2979]
[1766273597235,0.443,2979.1,2978.6,0.9303]
[1766273597409,0.443,2979.1,2978.8,0.9303]
[1766273597607,0.443,2979.1,2978.9,0.3676]
[1766273599828,0.443,2979.1,2978.8,0.9303]
[1766273601507,3.79972518,2979.1,2978.8,0.9303]
[1766273601837,3.79972518,2979.1,2978.7,0.3676]
[1766273606754,12.22798094,2979.1,2978.7,0.3676]
[1766273606918,12.9384029,2979.1,2978.7,0.3676]
[1766273609020,12.9384029,2979.1,2978.6,0.9323]
[1766273609649,12.9384029,2979.1,2978.6,1.274]
[1766273610127,12.4964029,2979.1,2978.6,1.274]
[1766273610447,4.36556047,2979.0,2978.6,1.274]
[1766273610646,8.42825576,2978.9,2978.6,0.002]
[1766273610815,8.42825576,2978.7,2978.3,1.63465667]
[1766273611249,8.42825576,2978.9,2978.3,1.63465667]
[1766273611628,1.00876787,2978.8,2978.3,1.63465667]
[1766273613019,1.00876787,2978.8,2978.4,1.2667]
[1766273614014,1.00876787,2978.8,2978.3,0.44]
[1766273614746,1.00876787,2978.8,2978.5,0.3563]
[1766273614932,1.00876787,2978.8,2978.6,1.3287]
[1766273618754,1.00876787,2978.8,2978.5,0.002]
[1766273618950,1.00876787,2978.8,2978.7,0.3563]
[1766273623941,1.00976787,2978.8,2978.7,0.3563]
[1766273626692,0.001,2978.8,2978.7,0.3563]
[1766273626991,3.35776152,2979.1,2978.5,0.002]
[1766273627191,0.001,2979.1,2978.5,0.002]
[1766273627689,0.443,2979.1,2978.5,0.002]
[1766273629050,0.443,2979.1,2978.7,0.3563]
[1766273629363,0.443,2979.1,2978.8,1.3287]
[1766273630063,0.443,2979.1,2978.5,0.002]
[1766273630064,0.443,2979.1,2978.6,0.9724]
[1766273630267,0.443,2979.1,2978.8,0.9724]
[1766273630443,0.443,2979.1,2978.8,1.3287]
[1766273632073,3.79973205,2979.1,2978.8,0.9724]
[1766273632279,0.42407321,2979.0,2978.6,0.3563]
[1766273632436,3.79973205,2979.1,2978.6,1.3287]
[1766273636766,3.79973205,2979.1,2978.5,0.002]
[1766273637135,3.79973205,2979.1,2978.7,0.3563]
[1766273637337,3.79973205,2979.1,2978.7,1.3287]
[1766273637535,3.35773205,2979.1,2978.7,1.3287]
[1766273637762,4.36649992,2979.1,2978.7,1.3287]
[1766273637961,17.00263461,2979.1,2978.5,1.3307]
[1766273638167,15.99386674,2979.1,2978.5,1.3307]
[1766273638347,1.00876787,2979.0,2978.5,1.3307]
[1766273639661,4.36570379,2979.0,2978.5,1.3307]
[1766273639849,8.42780287,2978.8,2978.3,0.442]
[1766273640168,1.73228385,2978.9,2978.3,0.442]
[1766273640340,2.74106529,2978.9,2978.3,0.442]
[1766273640541,2.74106529,2978.9,2978.3,1.4144]
[1766273640868,2.74106529,2978.9,2978.3,1.7707]
[1766273642567,6.09805428,2978.9,2978.3,1.3307]
[1766273642748,6.09805428,2978.9,2978.3,1.7707]
[1766273643151,0.60980543,2978.8,2978.3,1.7707]
[1766273643464,1.00878144,2978.8,2978.5,1.3287]
[1766273644669,0.001,2979.1,2978.7,0.3588]
[1766273644866,4.73681408,2979.1,2978.7,0.9023]
[1766273645039,4.73681408,2979.1,2978.5,1.2611]
[1766273645242,4.36651408,2979.1,2978.5,1.2611]
[1766273645469,0.3703,2979.0,2978.5,1.2611]
[1766273645856,0.35443751,2979.0,2978.5,1.2611]
[1766273647972,0.35443751,2979.0,2978.5,0.3588]
[1766273648173,0.35443751,2979.0,2978.6,1.2611]
[1766273648556,4.60211408,2979.1,2978.6,1.2611]
[1766273650747,4.36651408,2979.1,2978.7,0.9023]
[1766273651348,1.00978144,2979.1,2978.7,0.9023]
[1766273651679,4.36650837,2979.1,2978.7,1.2611]
[1766273663162,4.73150837,2979.1,2978.7,0.9023]
[1766273667695,4.73150837,2979.1,2978.6,0.3458]
[1766273667985,3.95802693,2979.1,2978.6,1.2507]
[1766273668191,3.72272693,2979.1,2978.6,1.2507]
[1766273668390,0.442,2979.0,2978.6,1.2507]
[1766273678683,0.442,2979.0,2978.6,0.002]
[1766273679370,0.442,2979.0,2978.6,1.2718]
[1766273681302,0.442,2979.0,2978.6,0.3582]
[1766273681601,0.442,2979.0,2978.7,0.9136]
[1766273690309,0.442,2979.0,2978.7,1.2698]
[1766273690512,0.442,2979.0,2978.6,0.002]
[1766273690810,0.442,2979.0,2978.7,0.3562]
[1766273691194,3.3577443,2979.1,2978.7,0.3562]
[1766273691907,3.7139443,2979.1,2978.7,0.3562]
[1766273692885,0.3572,2979.1,2978.7,1.2698]
[1766273693310,0.001,2979.0,2978.8,0.3562]
[1766273693708,0.001,2979.0,2978.8,1.2698]
[1766273699020,0.3572,2979.1,2978.8,1.2698]
[1766273699218,0.001,2979.4,2978.9,0.9136]
[1766273699418,0.001,2979.4,2978.9,1.0086729]
[1766273699628,1.0086729,2979.5,2978.9,1.0086729]
[1766273699819,1.0086729,2979.5,2979.0,1.2698]
[1766273699998,1.0086729,2979.5,2979.0,0.9136]
[1766273700198,1.0086729,2979.5,2979.2,0.9136]
[1766273700517,1.0086729,2979.5,2979.2,1.2698]
[1766273701724,4.36494278,2979.5,2979.2,1.2698]
[1766273701921,5.26854181,2979.5,2979.2,1.2698]
[1766273702121,1.91227193,2979.5,2979.2,1.2698]
[1766273702326,0.001,2979.6,2979.2,1.2698]
[1766273702626,1.00962881,2979.6,2979.2,1.2698]